[Event "Early-Titled-Tuesday-Blitz-March-05-2024"]
[Site "Chess.com"]
[Date "2024.03.05"]
[Round "1"]
[White "VinzentSpitzl"]
[Black "chessamical"]
[Result "1-0"]
[WhiteElo "2542"]
[BlackElo "2097"]
[TimeControl "180+1"]
[EndTime "8:06:46 PST"]
[Termination "VinzentSpitzl won on time"]

1. e4 {[%clk 0:03:00.9]} 1... e6 {[%clk 0:02:55.3]} 2. d4 {[%clk 0:02:59.5]}
2... d5 {[%clk 0:02:55.9]} 3. Nd2 {[%clk 0:02:58.7]} 3... c5 {[%clk 0:02:54.8]}
4. exd5 {[%clk 0:02:57.9]} 4... Qxd5 {[%clk 0:02:51.5]} 5. Ngf3 {[%clk
0:02:58.1]} 5... cxd4 {[%clk 0:02:51.4]} 6. Bc4 {[%clk 0:02:58.1]} 6... Qd6
{[%clk 0:02:50.1]} 7. O-O {[%clk 0:02:57.8]} 7... Nf6 {[%clk 0:02:50.7]} 8. Nb3
{[%clk 0:02:56.6]} 8... Nc6 {[%clk 0:02:50.8]} 9. Nbxd4 {[%clk 0:02:56.7]} 9...
Nxd4 {[%clk 0:02:51.4]} 10. Qxd4 {[%clk 0:02:57.1]} 10... Qxd4 {[%clk
0:02:45.4]} 11. Nxd4 {[%clk 0:02:58]} 11... a6 {[%clk 0:02:45.8]} 12. a4 {[%clk
0:02:49.4]} 12... Bd6 {[%clk 0:02:32.9]} 13. Be2 {[%clk 0:02:43.2]} 13... e5
{[%clk 0:02:28.1]} 14. Nb3 {[%clk 0:02:38.5]} 14... Bf5 {[%clk 0:02:26.3]} 15.
Na5 {[%clk 0:02:27.1]} 15... Rb8 {[%clk 0:02:21.6]} 16. Be3 {[%clk 0:02:07.2]}
16... O-O {[%clk 0:01:57.2]} 17. Ba7 {[%clk 0:01:55.8]} 17... Ra8 {[%clk
0:01:56.4]} 18. Nxb7 {[%clk 0:01:51]} 18... Rxa7 {[%clk 0:01:17.3]} 19. Nxd6
{[%clk 0:01:50.3]} 19... Bxc2 {[%clk 0:01:17.8]} 20. Rfc1 {[%clk 0:01:42.8]}
20... Bb3 {[%clk 0:01:15]} 21. Ra3 {[%clk 0:01:33.2]} 21... Be6 {[%clk
0:01:08.6]} 22. b4 {[%clk 0:01:23.7]} 22... g6 {[%clk 0:01:05.9]} 23. g3 {[%clk
0:01:13]} 23... Rd8 {[%clk 0:01:04.1]} 24. Rc6 {[%clk 0:01:04.8]} 24... Nd5
{[%clk 0:00:18.9]} 25. b5 {[%clk 0:00:44.3]} 25... Nb4 {[%clk 0:00:18.1]} 26.
Rb6 {[%clk 0:00:42.7]} 26... Nd5 {[%clk 0:00:17.5]} 27. Rb7 {[%clk 0:00:40.2]}
27... Raa8 {[%clk 0:00:08.9]} 28. Ne4 {[%clk 0:00:37]} 28... axb5 {[%clk
0:00:06.7]} 29. Bxb5 {[%clk 0:00:36.5]} 1-0

[Event "Early-Titled-Tuesday-Blitz-March-05-2024"]
[Site "Chess.com"]
[Date "2024.03.05"]
[Round "1"]
[White "NovozhilovSemen"]
[Black "yonaltimur"]
[Result "1-0"]
[WhiteElo "2639"]
[BlackElo "2343"]
[TimeControl "180+1"]
[EndTime "8:06:47 PST"]
[Termination "NovozhilovSemen won by resignation"]

1. d4 {[%clk 0:02:39.3]} 1... d5 {[%clk 0:02:59.8]} 2. c4 {[%clk 0:02:38.6]}
2... e6 {[%clk 0:02:59.8]} 3. Nf3 {[%clk 0:02:37]} 3... a6 {[%clk 0:03:00]} 4.
g3 {[%clk 0:02:33.9]} 4... dxc4 {[%clk 0:02:52.1]} 5. Bg2 {[%clk 0:02:33.8]}
5... b5 {[%clk 0:02:48.1]} 6. O-O {[%clk 0:02:33.2]} 6... Bb7 {[%clk 0:02:46.5]}
7. a4 {[%clk 0:02:33.1]} 7... Nf6 {[%clk 0:02:32.5]} 8. b3 {[%clk 0:02:30.2]}
8... cxb3 {[%clk 0:02:27.8]} 9. Qxb3 {[%clk 0:02:31.1]} 9... b4 {[%clk
0:02:11.5]} 10. a5 {[%clk 0:02:28.7]} 10... Be7 {[%clk 0:02:06.1]} 11. Bd2
{[%clk 0:02:17.4]} 11... Bd5 {[%clk 0:01:56]} 12. Qb2 {[%clk 0:02:12.2]} 12...
Nbd7 {[%clk 0:01:33]} 13. Rc1 {[%clk 0:02:08.6]} 13... c5 {[%clk 0:01:18]} 14.
dxc5 {[%clk 0:02:02.3]} 14... Nxc5 {[%clk 0:01:14.5]} 15. Bxb4 {[%clk
0:01:58.6]} 15... Nb3 {[%clk 0:01:06.5]} 16. Bxe7 {[%clk 0:01:57.4]} 16... Qxe7
{[%clk 0:01:05.5]} 17. Nc3 {[%clk 0:01:52.2]} 17... Nxa1 {[%clk 0:01:05]} 18.
Nxd5 {[%clk 0:01:51.8]} 18... exd5 {[%clk 0:01:01]} 19. Nd4 {[%clk 0:01:49.5]}
19... O-O {[%clk 0:00:59.4]} 20. Qxa1 {[%clk 0:01:46.4]} 20... Rfc8 {[%clk
0:00:59.4]} 21. Nc6 {[%clk 0:01:46]} 21... Qd6 {[%clk 0:00:57.8]} 22. Qa4 {[%clk
0:01:38.8]} 22... h6 {[%clk 0:00:54.8]} 23. h4 {[%clk 0:01:36.5]} 23... Ra7
{[%clk 0:00:54]} 24. Ne7+ {[%clk 0:01:34.3]} 24... Rxe7 {[%clk 0:00:51.2]} 25.
Rxc8+ {[%clk 0:01:35.2]} 25... Kh7 {[%clk 0:00:51.1]} 26. Qc2+ {[%clk
0:01:34.7]} 26... g6 {[%clk 0:00:50.2]} 27. Bf3 {[%clk 0:01:32.2]} 27... h5
{[%clk 0:00:45.3]} 28. Qc3 {[%clk 0:01:28.8]} 28... d4 {[%clk 0:00:41.9]} 29.
Qc6 {[%clk 0:01:28.1]} 29... Qe5 {[%clk 0:00:19.9]} 30. Qxa6 {[%clk 0:01:24.4]}
30... Kg7 {[%clk 0:00:19.7]} 31. Qb6 {[%clk 0:01:16.3]} 31... Nd5 {[%clk
0:00:18.8]} 32. Bxd5 {[%clk 0:01:13.8]} 32... Qxd5 {[%clk 0:00:19.7]} 33. Rd8
{[%clk 0:01:14.2]} 33... Qf5 {[%clk 0:00:09.7]} 34. Qxd4+ {[%clk 0:01:13]} 34...
f6 {[%clk 0:00:10.2]} 35. Qd2 {[%clk 0:01:06.4]} 35... Qb5 {[%clk 0:00:07.8]}
36. e3 {[%clk 0:01:02.4]} 36... Ra7 {[%clk 0:00:05.2]} 37. Rd5 {[%clk
0:00:59.8]} 37... Qb1+ {[%clk 0:00:05.3]} 38. Kh2 {[%clk 0:00:59.8]} 38... Qb7
{[%clk 0:00:03.6]} 39. Qd4 {[%clk 0:00:56.4]} 39... Qc7 {[%clk 0:00:01.7]} 1-0

[Event "Early-Titled-Tuesday-Blitz-March-05-2024"]
[Site "Chess.com"]
[Date "2024.03.05"]
[Round "1"]
[White "bylavochka"]
[Black "tetrix83"]
[Result "0-1"]
[WhiteElo "2294"]
[BlackElo "2608"]
[TimeControl "180+1"]
[EndTime "8:06:49 PST"]
[Termination "tetrix83 won by resignation"]

1. e4 {[%clk 0:02:47.6]} 1... c5 {[%clk 0:02:54.9]} 2. Nf3 {[%clk 0:02:47.2]}
2... d6 {[%clk 0:02:54.1]} 3. d4 {[%clk 0:02:47.7]} 3... cxd4 {[%clk 0:02:55]}
4. Nxd4 {[%clk 0:02:48.3]} 4... Nf6 {[%clk 0:02:55.3]} 5. Nc3 {[%clk 0:02:46.7]}
5... a6 {[%clk 0:02:51.8]} 6. f3 {[%clk 0:02:46.2]} 6... e6 {[%clk 0:02:32.4]}
7. Be3 {[%clk 0:02:46.1]} 7... Qc7 {[%clk 0:02:31.4]} 8. Qd2 {[%clk 0:02:45.9]}
8... b5 {[%clk 0:02:31.7]} 9. g4 {[%clk 0:02:43.4]} 9... Nfd7 {[%clk 0:02:22.6]}
10. h4 {[%clk 0:02:35.5]} 10... Nb6 {[%clk 0:02:16.7]} 11. a4 {[%clk 0:02:29.5]}
11... b4 {[%clk 0:02:16.6]} 12. Na2 {[%clk 0:02:29.4]} 12... d5 {[%clk
0:02:14.7]} 13. a5 {[%clk 0:01:59.5]} 13... Nc4 {[%clk 0:02:07.6]} 14. Bxc4
{[%clk 0:01:57.8]} 14... Qxc4 {[%clk 0:02:07.1]} 15. exd5 {[%clk 0:01:56.8]}
15... Qxd5 {[%clk 0:02:01.5]} 16. Nxb4 {[%clk 0:01:40.7]} 16... Qb7 {[%clk
0:02:01.5]} 17. Nd3 {[%clk 0:01:35.5]} 17... Bd6 {[%clk 0:01:54.7]} 18. O-O-O
{[%clk 0:01:15.8]} 18... O-O {[%clk 0:01:50.2]} 19. h5 {[%clk 0:01:00.3]} 19...
Nd7 {[%clk 0:01:42.3]} 20. g5 {[%clk 0:00:32.9]} 20... Rb8 {[%clk 0:01:39.9]}
21. Nb3 {[%clk 0:00:30.8]} 21... Qc7 {[%clk 0:01:25]} 22. g6 {[%clk 0:00:20]}
22... Rxb3 {[%clk 0:01:23]} 23. h6 {[%clk 0:00:09.1]} 23... fxg6 {[%clk
0:01:18.4]} 24. hxg7 {[%clk 0:00:08.8]} 24... Rxf3 {[%clk 0:01:14.5]} 25. Rxh7
{[%clk 0:00:07.6]} 25... Kxh7 {[%clk 0:01:12.9]} 26. Rh1+ {[%clk 0:00:03.7]}
26... Kxg7 {[%clk 0:00:47.9]} 27. Bd4+ {[%clk 0:00:03.9]} 27... Nf6 {[%clk
0:00:45.9]} 28. Qh6+ {[%clk 0:00:03.5]} 28... Kf7 {[%clk 0:00:46.2]} 29. Bxf6
{[%clk 0:00:02.5]} 29... Bf4+ {[%clk 0:00:46.4]} 30. Qxf4 {[%clk 0:00:01.6]}
30... Rxf4 {[%clk 0:00:38.5]} 31. Nxf4 {[%clk 0:00:02.1]} 31... Qxf4+ {[%clk
0:00:38]} 32. Kb1 {[%clk 0:00:01.8]} 32... Kxf6 {[%clk 0:00:36.9]} 33. cxb3
{[%clk 0:00:02.7]} 0-1

[Event "Early-Titled-Tuesday-Blitz-March-05-2024"]
[Site "Chess.com"]
[Date "2024.03.05"]
[Round "1"]
[White "abelmat"]
[Black "santosalberto1987"]
[Result "0-1"]
[WhiteElo "2039"]
[BlackElo "2538"]
[TimeControl "180+1"]
[EndTime "8:06:50 PST"]
[Termination "santosalberto1987 won by resignation"]

1. d4 {[%clk 0:02:55.7]} 1... Nf6 {[%clk 0:02:59.5]} 2. c4 {[%clk 0:02:56.1]}
2... d6 {[%clk 0:02:59.5]} 3. Nf3 {[%clk 0:02:56.4]} 3... g6 {[%clk 0:02:58.4]}
4. g3 {[%clk 0:02:56]} 4... Bg7 {[%clk 0:02:58.1]} 5. Bg2 {[%clk 0:02:56.5]}
5... O-O {[%clk 0:02:58.4]} 6. O-O {[%clk 0:02:56.9]} 6... Nc6 {[%clk
0:02:58.1]} 7. Nc3 {[%clk 0:02:56.3]} 7... a6 {[%clk 0:02:57.1]} 8. e4 {[%clk
0:02:51.1]} 8... Rb8 {[%clk 0:02:54.6]} 9. h3 {[%clk 0:02:48.4]} 9... b5 {[%clk
0:02:53.7]} 10. cxb5 {[%clk 0:02:33.5]} 10... axb5 {[%clk 0:02:54.6]} 11. e5
{[%clk 0:02:27.4]} 11... Nd7 {[%clk 0:02:54.5]} 12. e6 {[%clk 0:02:23.5]} 12...
fxe6 {[%clk 0:02:53.6]} 13. Be3 {[%clk 0:02:14.9]} 13... Nf6 {[%clk 0:02:49.8]}
14. Rc1 {[%clk 0:02:08.8]} 14... Nb4 {[%clk 0:02:41.3]} 15. Ng5 {[%clk
0:01:53.9]} 15... h6 {[%clk 0:02:35.4]} 16. Nge4 {[%clk 0:01:45.6]} 16... Nbd5
{[%clk 0:02:35.2]} 17. Qd2 {[%clk 0:01:38.3]} 17... Kh7 {[%clk 0:02:29.9]} 18.
Ne2 {[%clk 0:01:25]} 18... Bb7 {[%clk 0:02:23.5]} 19. Nf4 {[%clk 0:01:09.7]}
19... Nxf4 {[%clk 0:02:21]} 20. Nxf6+ {[%clk 0:01:02.4]} 20... exf6 {[%clk
0:02:19.5]} 21. Bxb7 {[%clk 0:00:51.5]} 21... Nxh3+ {[%clk 0:02:17.9]} 22. Kh2
{[%clk 0:00:48.1]} 22... Rxb7 {[%clk 0:02:17.9]} 23. Kxh3 {[%clk 0:00:47.6]}
23... e5 {[%clk 0:02:09.8]} 24. Rh1 {[%clk 0:00:43.5]} 24... h5 {[%clk
0:01:52.4]} 25. Kg2 {[%clk 0:00:41.6]} 25... Qd7 {[%clk 0:01:52.7]} 26. d5
{[%clk 0:00:35.7]} 26... f5 {[%clk 0:01:46.8]} 27. Bg5 {[%clk 0:00:27.2]} 27...
e4 {[%clk 0:01:43.6]} 28. Rh4 {[%clk 0:00:23.9]} 28... Qf7 {[%clk 0:01:37.4]}
29. Rch1 {[%clk 0:00:21.8]} 29... b4 {[%clk 0:01:36.4]} 30. b3 {[%clk
0:00:19.6]} 30... Rb5 {[%clk 0:01:34.8]} 31. Rd1 {[%clk 0:00:17]} 31... Bc3
{[%clk 0:01:28.9]} 32. Qf4 {[%clk 0:00:13.2]} 32... Rxd5 {[%clk 0:01:27.3]} 33.
Rdh1 {[%clk 0:00:12.8]} 33... Kg8 {[%clk 0:01:22.6]} 34. Bh6 {[%clk 0:00:12.7]}
34... Re8 {[%clk 0:01:17.1]} 35. Qe3 {[%clk 0:00:11]} 35... Bd4 {[%clk
0:01:13.5]} 36. Qe2 {[%clk 0:00:10.1]} 36... e3 {[%clk 0:01:11.4]} 37. f4 {[%clk
0:00:09.8]} 37... Bg7 {[%clk 0:01:06.8]} 38. Bg5 {[%clk 0:00:09.4]} 38... Rd2
{[%clk 0:01:06.5]} 39. Qxd2 {[%clk 0:00:08.7]} 39... exd2 {[%clk 0:01:06.3]} 40.
Kf3 {[%clk 0:00:09.6]} 40... Qd5+ {[%clk 0:01:05]} 0-1

[Event "Early-Titled-Tuesday-Blitz-March-05-2024"]
[Site "Chess.com"]
[Date "2024.03.05"]
[Round "1"]
[White "arenal72"]
[Black "NCchamp"]
[Result "1-0"]
[WhiteElo "2622"]
[BlackElo "2322"]
[TimeControl "180+1"]
[EndTime "8:06:52 PST"]
[Termination "arenal72 won by checkmate"]

1. Nf3 {[%clk 0:03:00.9]} 1... d5 {[%clk 0:02:57.6]} 2. g3 {[%clk 0:03:00.6]}
2... c6 {[%clk 0:02:56.3]} 3. Bg2 {[%clk 0:02:59.4]} 3... Bg4 {[%clk 0:02:56.5]}
4. O-O {[%clk 0:02:58.6]} 4... e6 {[%clk 0:02:56.9]} 5. d3 {[%clk 0:02:56.4]}
5... Bd6 {[%clk 0:02:52.1]} 6. c4 {[%clk 0:02:53.3]} 6... dxc4 {[%clk
0:02:51.7]} 7. dxc4 {[%clk 0:02:52.6]} 7... Qe7 {[%clk 0:02:51.2]} 8. Nc3 {[%clk
0:02:50.9]} 8... Nd7 {[%clk 0:02:49.2]} 9. Be3 {[%clk 0:02:27.6]} 9... Ngf6
{[%clk 0:02:44.3]} 10. Qb3 {[%clk 0:02:21]} 10... Nc5 {[%clk 0:02:43.1]} 11. Qc2
{[%clk 0:02:20.7]} 11... Bf5 {[%clk 0:02:43]} 12. Qc1 {[%clk 0:02:12.8]} 12...
h6 {[%clk 0:02:41.4]} 13. b4 {[%clk 0:02:07.7]} 13... Nce4 {[%clk 0:02:32.3]}
14. c5 {[%clk 0:02:07.2]} 14... Bc7 {[%clk 0:02:30.7]} 15. Nd4 {[%clk
0:02:02.7]} 15... Nxc3 {[%clk 0:01:56.6]} 16. Qxc3 {[%clk 0:02:00]} 16... Nd5
{[%clk 0:01:56.2]} 17. Bxd5 {[%clk 0:01:54.6]} 17... cxd5 {[%clk 0:01:53.7]} 18.
Nxf5 {[%clk 0:01:51.9]} 18... exf5 {[%clk 0:01:53.9]} 19. Rad1 {[%clk
0:01:49.2]} 19... Rd8 {[%clk 0:01:47.9]} 20. Bd4 {[%clk 0:01:34.4]} 20... f6
{[%clk 0:01:44.2]} 21. Qf3 {[%clk 0:01:29.4]} 21... Qe4 {[%clk 0:01:43.9]} 22.
Qh5+ {[%clk 0:01:21.8]} 22... Kf8 {[%clk 0:01:40.6]} 23. Rd3 {[%clk 0:01:06.3]}
23... Qg4 {[%clk 0:01:34.5]} 24. Qxg4 {[%clk 0:01:04.3]} 24... fxg4 {[%clk
0:01:35.4]} 25. Rfd1 {[%clk 0:01:04.7]} 25... Kf7 {[%clk 0:01:33.7]} 26. Bc3
{[%clk 0:00:58.5]} 26... Ke6 {[%clk 0:01:32.8]} 27. Re3+ {[%clk 0:00:55.2]}
27... Be5 {[%clk 0:01:25.1]} 28. f4 {[%clk 0:00:52.7]} 28... gxf3 {[%clk
0:01:25.4]} 29. exf3 {[%clk 0:00:51.9]} 29... Kf5 {[%clk 0:01:21.7]} 30. g4+
{[%clk 0:00:44.8]} 30... Kg6 {[%clk 0:00:56.2]} 31. Bxe5 {[%clk 0:00:42.4]}
31... fxe5 {[%clk 0:00:56.2]} 32. Rxe5 {[%clk 0:00:43.3]} 32... Rhf8 {[%clk
0:00:54.9]} 33. Kf2 {[%clk 0:00:42]} 33... Rf4 {[%clk 0:00:55.2]} 34. a3 {[%clk
0:00:39.6]} 34... a5 {[%clk 0:00:54.1]} 35. b5 {[%clk 0:00:35.1]} 35... Ra4
{[%clk 0:00:50.9]} 36. Rexd5 {[%clk 0:00:34.1]} 36... Rxd5 {[%clk 0:00:49.8]}
37. Rxd5 {[%clk 0:00:35]} 37... Rxa3 {[%clk 0:00:49.6]} 38. Rd6+ {[%clk
0:00:34.6]} 38... Kg5 {[%clk 0:00:47.9]} 39. Kg3 {[%clk 0:00:33.8]} 39... h5
{[%clk 0:00:23.8]} 40. h4# {[%clk 0:00:32.7]} 1-0

[Event "Early-Titled-Tuesday-Blitz-March-05-2024"]
[Site "Chess.com"]
[Date "2024.03.05"]
[Round "1"]
[White "ritanovikova"]
[Black "SaqoChess_Twitch"]
[Result "0-1"]
[WhiteElo "2209"]
[BlackElo "2571"]
[TimeControl "180+1"]
[EndTime "8:06:52 PST"]
[Termination "SaqoChess_Twitch won by checkmate"]

1. e4 {[%clk 0:02:57.8]} 1... c5 {[%clk 0:02:59.4]} 2. Nc3 {[%clk 0:02:57.5]}
2... d6 {[%clk 0:02:56.2]} 3. d3 {[%clk 0:02:57.5]} 3... Nf6 {[%clk 0:02:56]} 4.
g3 {[%clk 0:02:57.3]} 4... e6 {[%clk 0:02:56.1]} 5. Bg2 {[%clk 0:02:57.5]} 5...
Be7 {[%clk 0:02:56.8]} 6. Be3 {[%clk 0:02:56.9]} 6... O-O {[%clk 0:02:57.5]} 7.
Nge2 {[%clk 0:02:57.3]} 7... d5 {[%clk 0:02:57.9]} 8. d4 {[%clk 0:02:53]} 8...
cxd4 {[%clk 0:02:57.2]} 9. Nxd4 {[%clk 0:02:50.9]} 9... dxe4 {[%clk 0:02:57.8]}
10. Nxe4 {[%clk 0:02:49.4]} 10... Nxe4 {[%clk 0:02:57]} 11. Bxe4 {[%clk
0:02:50.3]} 11... Nd7 {[%clk 0:02:51.3]} 12. O-O {[%clk 0:02:45.3]} 12... Nf6
{[%clk 0:02:50]} 13. Bg2 {[%clk 0:02:43.8]} 13... a6 {[%clk 0:02:47.9]} 14. Qe2
{[%clk 0:02:38.3]} 14... e5 {[%clk 0:02:44.7]} 15. Nb3 {[%clk 0:02:38.4]} 15...
Bg4 {[%clk 0:02:44.3]} 16. f3 {[%clk 0:02:35.8]} 16... Be6 {[%clk 0:02:43.2]}
17. Rad1 {[%clk 0:02:34.9]} 17... Qc7 {[%clk 0:02:40.8]} 18. h3 {[%clk
0:02:26.6]} 18... Rac8 {[%clk 0:02:39.7]} 19. c3 {[%clk 0:02:26.7]} 19... Bc4
{[%clk 0:02:38.9]} 20. Qf2 {[%clk 0:02:22.6]} 20... Bxf1 {[%clk 0:02:39.1]} 21.
Rxf1 {[%clk 0:02:23.2]} 21... Rfd8 {[%clk 0:02:39.4]} 22. Bb6 {[%clk 0:02:22.6]}
22... Qc4 {[%clk 0:02:34.5]} 23. Bxd8 {[%clk 0:02:21.7]} 23... Rxd8 {[%clk
0:02:35.4]} 24. Kh2 {[%clk 0:02:13.8]} 24... h5 {[%clk 0:02:32.1]} 25. h4 {[%clk
0:02:12.8]} 25... Qa4 {[%clk 0:02:27.4]} 26. Nc1 {[%clk 0:02:10.5]} 26... Qb5
{[%clk 0:02:25.2]} 27. b3 {[%clk 0:02:06.4]} 27... Bc5 {[%clk 0:02:22.7]} 28.
Qe1 {[%clk 0:02:00.3]} 28... e4 {[%clk 0:02:20.4]} 29. c4 {[%clk 0:01:58.4]}
29... Qd7 {[%clk 0:02:16.9]} 30. fxe4 {[%clk 0:01:55.7]} 30... Ng4+ {[%clk
0:02:17]} 31. Kh1 {[%clk 0:01:52.5]} 31... Qd2 {[%clk 0:02:16.1]} 32. a3 {[%clk
0:01:20]} 32... Qxe1 {[%clk 0:02:08.1]} 33. Rxe1 {[%clk 0:01:19.7]} 33... Bxa3
{[%clk 0:02:08.4]} 34. Bf3 {[%clk 0:01:11.8]} 34... Rd2 {[%clk 0:01:58.1]} 35.
Ne2 {[%clk 0:01:07.7]} 35... Bb4 {[%clk 0:01:54.4]} 36. Rb1 {[%clk 0:00:56.5]}
36... Nf2+ {[%clk 0:01:52.6]} 37. Kg2 {[%clk 0:00:49.5]} 37... Nxe4 {[%clk
0:01:53]} 38. Bxe4 {[%clk 0:00:48.6]} 38... Rxe2+ {[%clk 0:01:52.8]} 39. Kf3
{[%clk 0:00:49.1]} 39... Rd2 {[%clk 0:01:47.4]} 40. Bd5 {[%clk 0:00:48.8]} 40...
Bc5 {[%clk 0:01:43.1]} 41. Be4 {[%clk 0:00:46.1]} 41... g6 {[%clk 0:01:41.5]}
42. Rf1 {[%clk 0:00:34.3]} 42... b6 {[%clk 0:01:37.2]} 43. Bd5 {[%clk
0:00:31.1]} 43... Kg7 {[%clk 0:01:35.5]} 44. Ke4 {[%clk 0:00:28.3]} 44... f6
{[%clk 0:01:35]} 45. Ra1 {[%clk 0:00:21.1]} 45... a5 {[%clk 0:01:29]} 46. Bc6
{[%clk 0:00:19.7]} 46... Kf7 {[%clk 0:01:20.1]} 47. Kf3 {[%clk 0:00:17.9]} 47...
f5 {[%clk 0:01:17.8]} 48. Kf4 {[%clk 0:00:13]} 48... Kf6 {[%clk 0:01:17.3]} 49.
Bf3 {[%clk 0:00:10.8]} 49... Rd3 {[%clk 0:01:13.2]} 50. Bd1 {[%clk 0:00:08.6]}
50... Bd6# {[%clk 0:01:12.8]} 0-1

[Event "Early-Titled-Tuesday-Blitz-March-05-2024"]
[Site "Chess.com"]
[Date "2024.03.05"]
[Round "1"]
[White "ChempionBg"]
[Black "Incognito_Knight"]
[Result "0-1"]
[WhiteElo "2401"]
[BlackElo "2704"]
[TimeControl "180+1"]
[EndTime "8:06:53 PST"]
[Termination "Incognito_Knight won on time"]

1. d4 {[%clk 0:02:48.6]} 1... d5 {[%clk 0:02:59.4]} 2. c4 {[%clk 0:02:47.5]}
2... e6 {[%clk 0:02:59.6]} 3. Nf3 {[%clk 0:02:47]} 3... a6 {[%clk 0:02:59.6]} 4.
g3 {[%clk 0:02:45]} 4... dxc4 {[%clk 0:02:58.5]} 5. Bg2 {[%clk 0:02:44.5]} 5...
b5 {[%clk 0:02:57]} 6. O-O {[%clk 0:02:41.1]} 6... Bb7 {[%clk 0:02:56.6]} 7. Nc3
{[%clk 0:02:40.1]} 7... Nf6 {[%clk 0:02:55.9]} 8. a4 {[%clk 0:02:40]} 8... b4
{[%clk 0:02:53.1]} 9. Nb1 {[%clk 0:02:39.6]} 9... a5 {[%clk 0:02:30.1]} 10. Nbd2
{[%clk 0:02:36]} 10... Bd5 {[%clk 0:02:30]} 11. Qc2 {[%clk 0:02:34]} 11... b3
{[%clk 0:02:28.9]} 12. Qd1 {[%clk 0:02:31.5]} 12... Nc6 {[%clk 0:02:22.9]} 13.
Ne5 {[%clk 0:02:22.6]} 13... Bxg2 {[%clk 0:02:18.2]} 14. Kxg2 {[%clk 0:02:21.8]}
14... Nxd4 {[%clk 0:01:59.4]} 15. Ndxc4 {[%clk 0:02:16.1]} 15... Qd5+ {[%clk
0:01:57.5]} 16. f3 {[%clk 0:01:48]} 16... Nc2 {[%clk 0:01:56.7]} 17. Rb1 {[%clk
0:01:35.6]} 17... Bc5 {[%clk 0:01:56.3]} 18. e4 {[%clk 0:01:30.3]} 18... Qb7
{[%clk 0:01:30.1]} 19. Bg5 {[%clk 0:01:22]} 19... Rd8 {[%clk 0:00:57.3]} 20.
Qxd8+ {[%clk 0:00:46.4]} 20... Kxd8 {[%clk 0:00:58.2]} 21. Nxf7+ {[%clk
0:00:46.7]} 21... Ke8 {[%clk 0:00:58.7]} 22. Nxh8 {[%clk 0:00:47.2]} 22... Nxe4
{[%clk 0:00:59.2]} 23. Rbd1 {[%clk 0:00:39.4]} 23... Nxg5 {[%clk 0:00:55]} 24.
Ne5 {[%clk 0:00:29.3]} 24... Ne3+ {[%clk 0:00:52.8]} 25. Kh1 {[%clk 0:00:26.9]}
25... Nxd1 {[%clk 0:00:48.1]} 26. Rxd1 {[%clk 0:00:21.9]} 26... Nxf3 {[%clk
0:00:48.1]} 27. Kg2 {[%clk 0:00:04]} 27... Nxe5+ {[%clk 0:00:43]} 28. Kh3 {[%clk
0:00:03.4]} 28... Qf3 {[%clk 0:00:41.9]} 29. Rd2 {[%clk 0:00:01.6]} 29... Qf1+
{[%clk 0:00:37.6]} 30. Kh4 {[%clk 0:00:01.3]} 30... Be7+ {[%clk 0:00:32.4]} 0-1

[Event "Early-Titled-Tuesday-Blitz-March-05-2024"]
[Site "Chess.com"]
[Date "2024.03.05"]
[Round "1"]
[White "Kiborg95"]
[Black "tusplingher"]
[Result "1-0"]
[WhiteElo "2797"]
[BlackElo "2448"]
[TimeControl "180+1"]
[EndTime "8:06:56 PST"]
[Termination "Kiborg95 won on time"]

1. e4 {[%clk 0:02:53.7]} 1... c5 {[%clk 0:02:59.8]} 2. Nc3 {[%clk 0:02:45.4]}
2... Nc6 {[%clk 0:02:58.3]} 3. Nge2 {[%clk 0:02:45.9]} 3... Nf6 {[%clk
0:02:54.3]} 4. g3 {[%clk 0:02:44.9]} 4... d6 {[%clk 0:02:54]} 5. Bg2 {[%clk
0:02:44.8]} 5... g6 {[%clk 0:02:54.5]} 6. O-O {[%clk 0:02:45.5]} 6... Bg7 {[%clk
0:02:55.1]} 7. f4 {[%clk 0:02:45.9]} 7... O-O {[%clk 0:02:55.3]} 8. d3 {[%clk
0:02:46.6]} 8... Rb8 {[%clk 0:02:51.5]} 9. h3 {[%clk 0:02:46.1]} 9... Bd7 {[%clk
0:02:48]} 10. a4 {[%clk 0:02:46.3]} 10... a6 {[%clk 0:02:47.2]} 11. Be3 {[%clk
0:02:47]} 11... b5 {[%clk 0:02:37.6]} 12. axb5 {[%clk 0:02:47.9]} 12... axb5
{[%clk 0:02:37.3]} 13. Qd2 {[%clk 0:02:48.8]} 13... Ne8 {[%clk 0:02:27.8]} 14.
f5 {[%clk 0:02:47]} 14... Ne5 {[%clk 0:02:20.2]} 15. Bh6 {[%clk 0:02:42.3]}
15... e6 {[%clk 0:02:06.5]} 16. g4 {[%clk 0:02:35]} 16... gxf5 {[%clk
0:01:35.7]} 17. exf5 {[%clk 0:02:34]} 17... exf5 {[%clk 0:01:23.6]} 18. gxf5
{[%clk 0:02:33.2]} 18... Bxh6 {[%clk 0:01:16.1]} 19. Qxh6 {[%clk 0:02:34.1]}
19... Qf6 {[%clk 0:01:15.8]} 20. Qf4 {[%clk 0:02:26.6]} 20... Kh8 {[%clk
0:01:11.1]} 21. Ne4 {[%clk 0:02:19.5]} 21... Qg7 {[%clk 0:01:08.5]} 22. f6
{[%clk 0:01:47.3]} 22... Qg6 {[%clk 0:01:08.1]} 23. Kh2 {[%clk 0:01:47.9]} 23...
Rg8 {[%clk 0:01:01.6]} 24. Rg1 {[%clk 0:01:45]} 24... Qf5 {[%clk 0:00:48.7]} 25.
Ra7 {[%clk 0:01:28.8]} 25... Rxg2+ {[%clk 0:00:14.3]} 26. Rxg2 {[%clk
0:01:20.4]} 26... Nf3+ {[%clk 0:00:12.9]} 27. Kg3 {[%clk 0:01:16.3]} 27... Qxh3+
{[%clk 0:00:12.7]} 28. Kf2 {[%clk 0:01:16.8]} 28... Nh4 {[%clk 0:00:10.6]} 29.
Rh2 {[%clk 0:01:11.6]} 29... Ng6 {[%clk 0:00:04.5]} 30. Rxh3 {[%clk 0:01:01.1]}
30... Nxf4 {[%clk 0:00:04.1]} 31. Nxf4 {[%clk 0:01:00.1]} 31... Bxh3 {[%clk
0:00:04.2]} 32. Nxh3 {[%clk 0:01:00.7]} 32... d5 {[%clk 0:00:03.6]} 33. Nxc5
{[%clk 0:00:56.6]} 33... Nxf6 {[%clk 0:00:03.9]} 34. Rxf7 {[%clk 0:00:57.1]}
34... Ng4+ {[%clk 0:00:03.5]} 35. Kg3 {[%clk 0:00:54.1]} 35... Ne5 {[%clk
0:00:03.7]} 36. Re7 {[%clk 0:00:52.9]} 36... Nc6 {[%clk 0:00:03.8]} 37. Rc7
{[%clk 0:00:51.6]} 37... Nd4 {[%clk 0:00:03.9]} 38. c3 {[%clk 0:00:47.3]} 38...
Nf5+ {[%clk 0:00:03.6]} 39. Kf4 {[%clk 0:00:46.4]} 39... Rf8 {[%clk 0:00:03.4]}
40. Ne6 {[%clk 0:00:46]} 1-0